Cogmind - Beta 10.2 @@@ ROGUE MODE // 2021.04.01 @ 13:19:05 // AFD2021/Volatile Player: Gitida Result: Destroyed by Y-45 Defender with Heavy Assault Rifle Performance ------------- Evolutions (1) 500 Regions Visited (2) 400 Robots Destroyed (29) 145 Value Destroyed (759) 759 Prototype IDs (2) 40 Alien Tech Used (0) 0 Bonus (19) 19 TOTAL SCORE: 1863 Bonus ------- High Alert Combat Kills 19 Cogmind --------- Core Integrity 0/400 Matter 289/300 Energy 250/250 System Corruption 1% Temperature Cool (9) Movement Walking (180) Ox2 Location -9/Materials Parts ------- > --- POWER (1) -------- Ion Engine > --- PROPULSION (2) --- Aluminum Leg > --- UTILITY (4) ------ Large Storage Unit > --- WEAPON (2) ------- (None) > --- INVENTORY (10) --- Ion Engine Light Ion Engine Light Treads Light Treads Large Storage Unit Shotgun Light Cannon Peak State ------------ > --- POWER ------------ Light Nuclear Core > --- PROPULSION ------- Aluminum Leg Aluminum Leg > --- UTILITY ---------- Improved Heat Sink Large Storage Unit Core Shielding > --- WEAPON ----------- Assault Rifle Light Cannon > --- INVENTORY -------- Ion Engine Light Ion Engine Light Treads Aluminum Leg Large Storage Unit [Rating: 12] Favorites ----------- Power Ion Engine Engine Ion Engine Power Core Light Nuclear Core Propulsion Light Treads Treads Light Treads Leg Aluminum Leg Utility Large Storage Unit Device Heat Sink Storage Large Storage Unit Protection Core Shielding Weapon Medium Laser Energy Gun Medium Laser Ballistic Gun Light Assault Rifle Ballistic Cannon Light Cannon Build | -11 -10 -9 ------- Run | Scr Mat Mat Slots Evolved 2 | . . 2 Power . | . . . Propulsion . | . . . Utility 2 | . . 2 Weapon . | . . . Parts Attached 20 | 7 . 13 Power 4 | 2 . 2 Engine 3 | 2 . 1 Core 1 | . . 1 Reactor . | . . . Propulsion 5 | 2 . 3 Treads 2 | 2 . . Leg 3 | . . 3 Wheel . | . . . Hover . | . . . Flight . | . . . Utility 5 | 1 . 4 Device 2 | . . 2 Storage 2 | 1 . 1 Processor . | . . . Hackware . | . . . Protection 1 | . . 1 Artifact . | . . . Weapon 6 | 2 . 4 Energy Gun 2 | 1 . 1 Energy Cannon . | . . . Ballistic Gun 2 | 1 . 1 Ballistic Cannon 2 | . . 2 Launcher . | . . . Special Weapon . | . . . Impact Weapon . | . . . Slashing Weapon . | . . . Piercing Weapon . | . . . Special Melee Weapon . | . . . Unidentified Prototypes . | . . . Parts Lost 14 | . . 14 Power 2 | . . 2 Propulsion 3 | . . 3 Utility 3 | . . 3 Weapon 6 | . . 6 Highest Loss Streak 5 | . . 5 Average Slot Usage (%) 76 | . 85 71 Engine 10 | . 14 8 Core 1 | . . 2 Treads 16 | . 28 10 Leg 6 | . . 9 Device 4 | . . 6 Storage 12 | . 14 11 Protection 2 | . . 3 Energy Gun 8 | . 14 4 Ballistic Gun 9 | . 14 7 Ballistic Cannon 4 | . . 7 Naked Turns . | . . . Heaviest Build 28 | 12 12 28 Greatest Support 40 | 40 40 40 Greatest Overweight (x) 2 | . . 2 Average Overweight (x) . | . . . Largest Inventory Capacity 10 | 6 6 10 Average Capacity 8 | 4 6 10 Most Carried 9 | 4 4 9 Average Carried 4 | 2 3 5 Final Capacity 10 | 6 6 10 Final Carried 7 | 2 4 7 Class Distribution -------------------- 86% | Mutant 13% | Scavenger-Mutant Dominant Class ---------------- Mutant | -10/Materials Mutant | -9/Materials Resources | -11 -10 -9 ----------- Run | Scr Mat Mat Matter Collected 547 | 223 42 282 Remotely . | . . . Salvage Created 976 | . 47 929 Parts 46 | . 1 45 Haulers Intercepted 1 | . . 1 Recyclers Shooed . | . . . Parts Field Recycled . | . . . Retrieved Matter . | . . . Parts Self-Destructed . | . . . Prevented . | . . . Kills | -11 -10 -9 ------- Run | Scr Mat Mat Combat Hostiles Destroyed 21 | . 1 20 Guns 8 | . 1 7 Cannons 6 | . . 6 AOE 7 | . . 7 Classes Destroyed 7 | . 1 6 Builder 4 | . . 4 Hauler 1 | . . 1 Recycler 3 | . . 3 Swarmer 4 | . . 4 Grunt 13 | . 1 12 Duelist 2 | . . 2 Sentry 2 | . . 2 Best Kill Streak 6 | . 1 6 Combat Bots Only 5 | . 1 5 Max Kills in Single Turn 6 | . 1 6 Gunslinging . | . . . Exploded 4 | . . 4 Melee . | . . . Uniques/NPCs Destroyed . | . . . Combat | -11 -10 -9 -------- Run | Scr Mat Mat Damage Taken 1482 | . 121 1361 Core 402 | . . 402 Absorbed by Shields . | . . . Core Remaining (%) 100 | 100 100 . Volleys Fired 60 | . 10 50 Largest 2 | . 2 2 Hottest 70 | . 70 70 Shots Fired 98 | . 20 78 Gun 72 | . 20 52 Cannon 26 | . . 26 Launcher . | . . . Special . | . . . Kinetic 73 | . 10 63 Thermal 25 | . 10 15 Explosive . | . . . Electromagnetic . | . . . Robot Hit Streak 7 | . 4 7 Robot Miss Streak 3 | . 3 3 Penetration Max . | . . . Secondary Targets 2 | . . 2 Max Gunslinging Chain 1 | . . 1 Shots Hit Robots 62 | . 11 51 Core Hits 48 | . 4 44 Critical Hits 1 | . 1 . Critical Kills . | . . . Critical Parts Destroyed 1 | . 1 . Melee Attacks . | . . . Impact . | . . . Slashing . | . . . Piercing . | . . . Sneak Attacks . | . . . Combat Hostiles . | . . . Follow-up Attacks . | . . . Damage Inflicted 2260 | . 157 2103 Guns 632 | . 143 489 Cannons 350 | . . 350 Explosions 1267 | . 5 1262 Melee . | . . . Ramming 11 | . 9 2 Kinetic 766 | . 54 712 Thermal 449 | . 94 355 Explosive 955 | . . 955 Electromagnetic 79 | . . 79 Impact . | . . . Slashing . | . . . Piercing . | . . . Highest Corruption 1 | . . 1 Average Corruption 1 | . . 1 Corruption Purged . | . . . Effects 6 | . . 6 Message Errors 2 | . . 2 Energy Discharges 2 | . . 2 Targeting Errors 2 | . . 2 Overload Shots . | . . . Overflow Damage 191 | . . 191 Projectiles . | . . . Explosions 191 | . . 191 Melee . | . . . Knockbacks 5 | . . 5 Impact . | . . . Kinetic 5 | . . 5 Secondary . | . . . Self-Inflicted Damage 665 | . 29 636 Shots 22 | . 1 21 Rammed 5 | . 3 2 Targets Rammed 5 | . 3 2 Kicked . | . . . Crushed . | . . . Highest Temperature 76 | . 76 36 Average Temperature 25 | . 36 12 Received Heat Transfer 318 | . 48 270 Siege Activations . | . . . Robots Corrupted . | . . . Combat Hostiles . | . . . Parts Fried . | . . . Impact Corruptions . | . . . Robots Melted . | . . . Combat Hostiles . | . . . Parts Melted 2 | . . 2 Heat Transferred 1059 | . 309 750 Parts Sabotaged . | . . . Parts Stolen . | . . . Parts Stripped . | . . . Power Chain Reactions 2 | . . 2 Missiles Intercepted . | . . . Alert | -11 -10 -9 ------- Run | Scr Mat Mat Peak Influence . | . . . Initial 39 | . . 39 Average . | . . . Maximum Alert Level 2 | . . 2 Low Security (%) 57 | 100 100 27 Level 1 37 | . . 64 Level 2 4 | . . 8 Level 3 . | . . . Level 4 . | . . . Level 5 . | . . . High Security . | . . . Max Security . | . . . Squads Dispatched 6 | . 3 3 Investigation 1 | . 1 . Extermination . | . . . Reinforcement 5 | . 2 3 Assault . | . . . Garrison . | . . . Intercept . | . . . Construction Impeded 2 | . . 2 Haulers Reinforced . | . . . Stealth | -11 -10 -9 --------- Run | Scr Mat Mat Distress Signals . | . . . Communications Jammed . | . . . Distress Signals . | . . . Times Spotted 32 | . 5 27 Peak Tracking Total 5 | . 3 5 Tactical Retreats 1 | . 1 . Traps | -11 -10 -9 ------- Run | Scr Mat Mat Traps Triggered 1 | . 1 . Indirectly . | . . . Trap Hack Attempts . | . . . Triggered . | . . . Disarmed . | . . . Reprogrammed . | . . . Reused . | . . . Traps Extracted . | . . . Installed . | . . . Triggered . | . . . Machines | -11 -10 -9 ---------- Run | Scr Mat Mat Machines Disabled 4 | . . 4 Max in Single Turn 2 | . . 2 Machines Sabotaged . | . . . Garrisons Compromised . | . . . Overloaded Fab Kills . | . . . Fab Network Shutdowns . | . . . Hacking | -11 -10 -9 --------- Run | Scr Mat Mat Machines Accessed 2 | . 2 . Terminals 2 | . 2 . Fabricators . | . . . Repair Stations . | . . . Recycling Units . | . . . Scanalyzers . | . . . Garrison Access . | . . . Total Hacks 7 | . 7 . Successful 3 | . 3 . Failed 4 | . 4 . Catastrophic 1 | . 1 . Database Lockouts . | . . . Manual 2 | . 2 . Terminals 7 | . 7 . Fabricators . | . . . Repair Stations . | . . . Recycling Units . | . . . Scanalyzers . | . . . Garrison Access . | . . . Terminal Hacks 3 | . 3 . Record 1 | . 1 . Prototype ID Bank 1 | . 1 . Recall Reinforcements 1 | . 1 . Fabricator Hacks . | . . . Repair Station Hacks . | . . . Recycling Unit Hacks . | . . . Scanalyzer . | . . . Garrison Access Hacks . | . . . Unauthorized Hacks . | . . . Terminals . | . . . Fabricators . | . . . Repair Stations . | . . . Recycling Units . | . . . Scanalyzers . | . . . Garrison Access . | . . . Data Cores Recovered . | . . . Used . | . . . Hacking Detections 2 | . 2 . Full Trace Events . | . . . Feedback Events . | . . . Feedback Blocked . | . . . Robot Schematics Acquired . | . . . Robots Built . | . . . Matter . | . . . Time . | . . . Total Robot Build Rating . | . . . Part Schematics Acquired . | . . . Parts Built . | . . . Matter . | . . . Time . | . . . Total Part Build Rating . | . . . Parts Repaired . | . . . Time . | . . . Parts Recycled . | . . . Recycled Matter . | . . . Retrieved Matter . | . . . Retrieved Components . | . . . Parts Scanalyzed . | . . . Part Schematics Acquired . | . . . Parts Damaged . | . . . Bothacking | -11 -10 -9 ------------ Run | Scr Mat Mat Used RIF Installer . | . . . Robots Hacked . | . . . Non-combat . | . . . Combat . | . . . Robot Hacks Applied . | . . . Relay Couplers Released . | . . . Robots Rewired . | . . . Allies Hacked . | . . . Hacks Repelled . | . . . Allies | -11 -10 -9 -------- Run | Scr Mat Mat Total Allies . | . . . Largest Group . | . . . Highest-Rated Group . | . . . Highest-Rated Ally . | . . . Total Orders . | . . . Ally Attacks . | . . . Total Damage . | . . . Kills . | . . . Allies Corrupted . | . . . Allies Melted . | . . . Intel | -11 -10 -9 ------- Run | Scr Mat Mat Robot Analysis Total . | . . . Derelict Logs Recovered . | . . . Drone Launches . | . . . Drone Recoveries . | . . . Exploration | -11 -10 -9 ------------- Run | Scr Mat Mat Turns Passed 992 | 73 338 581 Spaces Moved 485 | 47 175 263 Core 15 | 15 . . Treads 328 | 32 175 121 Legs 142 | . . 142 Wheels . | . . . Hover . | . . . Flight . | . . . Fastest Speed 50 | 50 160 150 Average Speed 155 | 124 160 158 Slowest Speed 180 | 160 160 180 Overloaded Moves . | . . . Propulsion Burnouts . | . . . Robots Hopped . | . . . Cave-ins Triggered . | . . . Exploration Rate (%) 22 | 4 35 28 Regions Visited 2 Branch Regions . Pre-discovered Areas . | . . . Known Exits Taken . | . . . Unknown Exits Taken 2 | 1 1 . Scrap Searched . | . . . Spaces Dug . | . . . Terrain Destroyed 185 | . 7 178 Melee . | . . . Projectile . | . . . AOE 185 | . 7 178 Terrain Rammed . | . . . Walls Destroyed . | . . . Machines Disabled . | . . . Actions | -11 -10 -9 --------- Run | Scr Mat Mat Total 619 | 61 213 345 Wait 28 | . 24 4 Move 483 | 46 174 263 Hop . | . . . Pick Up 21 | 8 2 11 Fast Attach 4 | . . 4 Attach 14 | 6 . 8 Detach 1 | . . 1 Swap 2 | 1 . 1 Drop 1 | . . 1 Fire 60 | . 10 50 Melee . | . . . Ram . | . . . Kick . | . . . Crush 5 | . 3 2 Escape Stasis . | . . . Rewire . | . . . Trap . | . . . Miscellaneous . | . . . Route ------- -11/Scrapyard -10/Materials -9/Materials History --------- Turn | Location | Event 10 | -11/Scrapyard | Discovered new exit (range 15) 74 | -11/Scrapyard | Entered Materials 303 | -10/Materials | Build established: Mutant 386 | -10/Materials | Discovered new exit (range 14) 412 | -10/Materials | Entered another Materials area 412 | -9/Materials | Evolved 2 slots: Utility x2 705 | -9/Materials | Lost 5 parts (1p1n1u2w) 818 | -9/Materials | Lost 5 parts (1p1n2u1w) 852 | -9/Materials | Core integrity fell below 50% 962 | -9/Materials | Core integrity fell below 20% 993 | -9/Materials | Destroyed by Y-45 Defender with Heavy Assault Rifle Last Messages --------------- 00862_ U-05 Engineer lays Concrete. 00864_ U-05 Engineer builds a Wall. 00865_ The unstable cave ceiling collapses. 00868_ U-05 Engineer builds a Wall. 00869_ The unstable cave ceiling collapses. 00895_ T-07 Excavator is excavating. 00895_ U-05 Engineer lays Concrete. 00897_ K-01 Serf collects debris. 00897_ U-05 Engineer lays Concrete. 00926_ Acquired Shotgun. 00964_ Aluminum Leg destroyed. 00967_ Y-45 Defender destroyed. 00969_ Lgt. Cannon destroyed. 00972_ Acquired 14 matter. 00973_ G-34 Mercenary knocked back. 00974_ Acquired 4 matter. 00975_ G-34 Mercenary knocked back. 00976_ Acquired 4 matter. 00981_ G-34 Mercenary destroyed. 00993_ Lgt. Cannon destroyed. Map ----- +----------------------------------------------------+ | | | | | | | | | | | | | | | | | ?????????????????????????????????????????????????? | | ?????????????????????????????????????????????????? | | ?????????????????????????????????????????????????? | | ?????????????????????????????????????????????????? | | ?????????????????????????????????????????????????? | | ?????????????????????????????##?#####????????????? | | ???????????????????????####### ?????????????? | | ???????????##+########## # """#??????????? | | ???????????? = # """#??????????? | | ???????????????? # """#??????????? | | ???????????????????? #??????????? | | ??????????????????#???? = "" #??????????? | | ?????????????????## #### Y [ # "Y ???????????? | | ?????????????????# # "" ?????????????? | | ?????????????????# = # ???????????????? | | ?????????????????# ##+#############+???? | | ?????????????????# """ # ??? | | ?????????????????# """ #@ ??? | | ?????????????????# """ # ??? | | ?????????????????######?#######+######+#######???? | | ???????????????????????????# ! #???????????? | | ???????????????????????????# #???????????? | | ?????????????????#########?# #???????????? | | ?????????????????# #?# """ """ #???????????? | | ??????????????????# #?# """ """ #???????????? | | ??????????????????##### ##?# """ """ #???????????? | | ??????????????????????# #??# #???????????? | | ??????? ?????????????# #??# #???????????? | | ??????? "????????????# #??#####+#+###???????????? | | ??????? ""???????????# #??????# #???????????????? | | ####### ?? ???????# #??????# #???????????????? | | ? #??????# ######## #???????????????? | | """ +??????# #???????????????? | | """ #??????# #???????????????? | | """ #??????# #???????????????? | | #??????# #???????????????? | | #????### #???????????????? | | """ ###### #???????????????? | | """ #???????????????? | | """ % ########???????????????? | | # ##????????????????????? | | # ##???????????????????? | +----------------------------------------------------+ Best States ------------- Heat Dissipation 42 Energy Generation 14 Energy Capacity 250 Matter Stores 300 Matter Capacity 300 Sight Range 16 Terrain Scan Density 10 Core Shielding 20 Evasion (%) 50 Recoil Reduction 2 Item Schematics ----------------- None Robot Schematics ------------------ None Fabricated ------------ Nothing Alien Tech Used ----------------- None Achievements -------------- None Challenges ------------ None Game ------ Seed WarpCooledInsulator Manual? 0 Play Time 00:07:17 Cumulative 123.8 hours Start 2021.04.01 @ 13:12:16 End 2021.04.01 @ 13:19:05 Sessions 1 Manual Loads 0 Difficulty Rogue Special Mode AFD2021/Volatile Game No. 141 Rogue 141 Adventurer 0 Explorer 0 Win Type - Total 3 Types 3/0/0/0/0/0/0/0/0 Lore% 63 Gallery% 62 Achievement% 49 Wizard Run 0 Options --------- ASCII 0 Keyboard 0 Movement Numpad Keybinds 0 Fullscreen 1 Font 12/Smallcaps Map View 83x54 Tactical HUD 1 Map Filters NONE Filters NONE Steam 1 RUN: 20f6da51-ed9c-466c-a64e-f9ed423c9169